Cogmind - Beta 15 @@@ ROGUE MODE // 2025.05.24 @ 01:33:35 Player: btrs Result: Destroyed by G-34 Mercenary with Small Laser Performance ------------- Evolutions (1) 500 Regions Visited (3) 600 Robots Destroyed (22) 110 Value Destroyed (591) 591 Prototype IDs (0) 0 Alien Tech Used (0) 0 Bonus (0) 0 TOTAL SCORE: 1801 Bonus ------- None Cogmind --------- Core Integrity 0/400 Matter 298/300 Energy 94/100 System Corruption 0% Temperature Cool (6) Movement Core (1400) Ox27 Location -9/Materials Parts ------- > --- POWER (1) -------- (None) > --- PROPULSION (3) --- (None) > --- UTILITY (3) ------ Huge Storage Unit Signal Interpreter > --- WEAPON (2) ------- Great Maul > --- INVENTORY (25) --- Ion Engine Ion Engine Light Ion Engine Heat Sink Improved Heat Sink Improved Heat Sink High-capacity Storage Unit Targeting Computer Power Shielding Hacking Suite Hacking Suite Datajack Mining Laser Peak State ------------ > --- POWER ------------ Light Ion Engine > --- PROPULSION ------- Light Treads Light Treads Aluminum Leg > --- UTILITY ---------- High-capacity Storage Unit Sensor Array Signal Interpreter > --- WEAPON ----------- Light Assault Rifle Great Maul > --- INVENTORY -------- Ion Engine Ion Engine Heat Sink Improved Heat Sink Improved Heat Sink Targeting Computer Power Shielding Hacking Suite Hacking Suite Particle Gun Datajack Mining Laser [Rating: 13] Favorites ----------- Power Ion Engine Engine Ion Engine Propulsion Light Treads Treads Light Treads Leg Aluminum Leg Utility Power Shielding Device Sensor Array Storage High-capacity Storage Unit Processor Signal Interpreter Protection Power Shielding Weapon Light Assault Rifle Energy Gun Particle Gun Ballistic Gun Light Assault Rifle Special Weapon Mining Laser Impact Weapon Great Maul Build | -11 -10 -10 -9 ------- Run | Yrd Mat Min Mat Slots Evolved 2 | . . . 2 Power . | . . . . Propulsion 1 | . . . 1 Utility 1 | . . . 1 Weapon . | . . . . Parts Attached 22 | 6 6 . 10 Power 4 | 1 . . 3 Engine 4 | 1 . . 3 Core . | . . . . Reactor . | . . . . Propulsion 5 | 2 . . 3 Treads 3 | 2 . . 1 Leg 2 | . . . 2 Wheel . | . . . . Hover . | . . . . Flight . | . . . . Utility 6 | 1 2 . 3 Device 1 | . . . 1 Storage 3 | 1 1 . 1 Processor 1 | . . . 1 Hackware . | . . . . Protection 1 | . 1 . . Artifact . | . . . . Weapon 7 | 2 4 . 1 Energy Gun 3 | 1 2 . . Energy Cannon . | . . . . Ballistic Gun 1 | 1 . . . Ballistic Cannon . | . . . . Launcher . | . . . . Special Weapon 2 | . 2 . . Impact Weapon 1 | . . . 1 Slashing Weapon . | . . . . Piercing Weapon . | . . . . Special Melee Weapon . | . . . . Unidentified Prototypes . | . . . . Parts Lost 9 | . . . 9 Power 2 | . . . 2 Propulsion 4 | . . . 4 Utility 1 | . . . 1 Weapon 2 | . . . 2 Highest Loss Streak 7 | . . . 7 To Critical Strikes . | . . . . Average Backups 9 | 2 7 10 12 Power 2 | 1 2 2 2 Propulsion 1 | 1 2 2 . Utility 3 | . 1 4 6 Weapon 1 | . . 1 1 Tool/Special . | . . . . Unused Backups 10 | . 3 . 7 Power 3 | . 2 . 1 Propulsion 1 | . 1 . . Utility 5 | . . . 5 Weapon . | . . . . Tool/Special 1 | . . . 1 Average Slot Usage (%) 97 | . 97 100 95 Engine 12 | . 14 14 10 Treads 27 | . 28 28 25 Leg 1 | . . . 5 Device 3 | . . . 10 Storage 13 | . 14 14 11 Processor 3 | . . . 10 Protection 8 | . 11 14 . Energy Gun 10 | . 11 14 8 Ballistic Gun 12 | . 14 14 10 Special Weapon 1 | . 2 . . Peak Build Rating 13 | 6 9 9 13 Average Rating 8 | 4 7 9 11 On Entrance 6 | . 6 9 9 Naked Turns . | . . . . Heaviest Build 90 | 12 50 50 90 Greatest Support 60 | 40 40 40 60 Greatest Overweight (x) 2 | . 1 1 2 Average Overweight (x) . | . . 1 . Largest Inventory Capacity 25 | 8 20 20 25 Average Capacity 14 | 7 10 20 20 Most Carried 15 | 5 10 10 15 Average Carried 9 | 2 7 10 12 Final Capacity 25 | 8 20 20 25 Final Carried 13 | 4 10 10 13 Class Distribution -------------------- 100% | Mutant Dominant Class ---------------- Mutant | -10/Materials Mutant | -10/Mines Mutant | -9/Materials Resources | -11 -10 -10 -9 ----------- Run | Yrd Mat Min Mat Matter Collected 498 | 256 126 8 108 Remotely . | . . . . Salvage Created 656 | . 387 28 241 Parts 40 | . 21 3 16 Haulers Intercepted 1 | . 1 . . Recyclers Shooed 1 | . 1 . . Parts Field Recycled . | . . . . Retrieved Matter . | . . . . Parts Self-Destructed . | . . . . Prevented . | . . . . Kills | -11 -10 -10 -9 ------- Run | Yrd Mat Min Mat Combat Hostiles Destroyed 19 | . 8 3 8 Guns 18 | . 8 3 7 Classes Destroyed 5 | . 3 1 1 Hauler 1 | . 1 . . Watcher 2 | . 1 . 1 Swarmer 7 | . . 3 4 Grunt 11 | . 8 . 3 Duelist 1 | . . . 1 Best Kill Streak 4 | . 2 3 4 Combat Bots Only 4 | . 2 3 4 Max Kills in Single Turn 2 | . 1 2 1 Gunslinging . | . . . . Exploded . | . . . . Melee . | . . . . Uniques/NPCs Destroyed . | . . . . Combat | -11 -10 -10 -9 -------- Run | Yrd Mat Min Mat Hostile Shots Fired 139 | . 32 17 90 Missed 38 | . 8 4 26 Hits 101 | . 24 13 64 Melee 18 | . . . 18 Projectile 83 | . 24 13 46 Critical Strikes 1 | . . . 1 Damage Taken 1511 | . 326 105 1080 Core 487 | . 53 24 410 Absorbed by Shields . | . . . . Redirected to Shielding 4 | . 4 . . Core Remaining (%) 84 | 100 . 69 . Volleys Fired 103 | . 64 8 31 Largest 2 | . 2 2 2 Hottest 100 | . 100 85 85 Shots Fired 190 | . 116 16 58 Gun 178 | . 104 16 58 Cannon . | . . . . Launcher . | . . . . Special 12 | . 12 . . Kinetic 91 | . 52 8 31 Thermal 99 | . 64 8 27 Explosive . | . . . . Electromagnetic . | . . . . Robot Hit Streak 14 | . 14 2 6 Robot Miss Streak 6 | . 6 4 4 Penetration Max . | . . . . Secondary Targets 3 | . . . 3 Max Gunslinging Chain 1 | . . . 1 Shots Hit Robots 90 | . 51 5 34 Core Hits 43 | . 24 3 16 Critical Kills . | . . . . Critical Parts Destroyed . | . . . . Critical Strikes . | . . . . Melee Attacks 9 | . . . 9 Impact 9 | . . . 9 Slashing . | . . . . Piercing . | . . . . Sneak Attacks . | . . . . Combat Hostiles . | . . . . Follow-up Attacks . | . . . . Damage Inflicted 1208 | . 552 104 552 Guns 963 | . 525 104 334 Cannons . | . . . . Explosions . | . . . . Melee 218 | . . . 218 Ramming . | . . . . Kinetic 370 | . 179 26 165 Thermal 620 | . 373 78 169 Explosive . | . . . . Electromagnetic . | . . . . Impact 218 | . . . 218 Slashing . | . . . . Piercing . | . . . . Highest Corruption . | . . . . Average Corruption . | . . . . Corruption Purged . | . . . . Corruption Blocked . | . . . . Overload Shots . | . . . . Overflow Damage 19 | . . . 19 Projectiles . | . . . . Explosions . | . . . . Melee 19 | . . . 19 Knockbacks 1 | . . . 1 Impact 1 | . . . 1 Kinetic . | . . . . Secondary . | . . . . Self-Inflicted Damage . | . . . . Shots . | . . . . Rammed . | . . . . Targets Rammed . | . . . . Kicked . | . . . . Crushed . | . . . . Highest Temperature 291 | . 184 252 291 Average Temperature 65 | . 46 123 81 Received Heat Transfer 372 | . 162 . 210 Effects 3 | . . 2 1 Energy Bleed 3 | . . 2 1 Siege Activations . | . . . . Martial Activations . | . . . . Shielding Activations . | . . . . Robots Disrupted . | . . . . Combat Hostiles . | . . . . Robots Corrupted 1 | . . . 1 Combat Hostiles 1 | . . . 1 Parts Fried 1 | . . . 1 Impact Corruptions 2 | . . . 2 Robots Melted . | . . . . Combat Hostiles . | . . . . Parts Melted 1 | . . . 1 Heat Transferred 1463 | . 871 185 407 Parts Sabotaged . | . . . . Parts Stolen . | . . . . Parts Stripped . | . . . . Power Chain Reactions . | . . . . Alert | -11 -10 -10 -9 ------- Run | Yrd Mat Min Mat Maximum Alert Level . | . . . . Low Security (%) 100 | 100 100 100 100 Level 1 . | . . . . Level 2 . | . . . . Level 3 . | . . . . Level 4 . | . . . . Level 5 . | . . . . High Security . | . . . . Max Security . | . . . . Peak Influence 102 | . 50 75 102 Initial 21 | . . . 21 Average 18 | . 9 14 41 Influence Increases 585 | . 226 85 274 Destroy 0b10 Robot/C 380 | . 160 60 160 Destroy 0b10 Robot/NC 15 | . 10 . 5 Destroy Leader 86 | . 34 10 42 Successful Hack 13 | . 6 . 7 Disable Machine 60 | . 15 15 30 Destroy Structure 1 | . 1 . . Lose Combat Pursuer 30 | . . . 30 Influence Decreases 535 | . 226 30 279 Entered New Map 34 | . . . 34 Time Decay 431 | . 226 30 175 Lost Part 70 | . . . 70 Squads Dispatched 4 | . 2 . 2 Investigation 1 | . 1 . . Extermination . | . . . . Reinforcement 3 | . 1 . 2 Assault . | . . . . Garrison . | . . . . Intercept . | . . . . Searches Triggered . | . . . . Construction Impeded . | . . . . Haulers Reinforced . | . . . . Active Scanning Responses . | . . . . Cargo Convoy Interrupts . | . . . . Stealth | -11 -10 -10 -9 --------- Run | Yrd Mat Min Mat Distress Signals 2 | . 1 . 1 Communications Jammed . | . . . . Distress Signals . | . . . . Times Spotted 35 | . 17 3 15 Peak Tracking Total 6 | . 3 3 6 Tactical Retreats 1 | . . . 1 Traps | -11 -10 -10 -9 ------- Run | Yrd Mat Min Mat Traps Triggered 1 | . 1 . . Indirectly . | . . . . Trap Hack Attempts . | . . . . Triggered . | . . . . Disarmed . | . . . . Reprogrammed . | . . . . Reused . | . . . . Traps Extracted . | . . . . Installed . | . . . . Triggered . | . . . . Machines | -11 -10 -10 -9 ---------- Run | Yrd Mat Min Mat Machines Disabled 4 | . 1 1 2 Max in Single Turn 1 | . 1 1 1 Machines Repaired . | . . . . Machines Dismantled . | . . . . Machines Sabotaged . | . . . . Overloaded Fab Kills . | . . . . Hacking | -11 -10 -10 -9 --------- Run | Yrd Mat Min Mat Machines Accessed 7 | . 6 . 1 Terminals 7 | . 6 . 1 Fabricators . | . . . . Repair Stations . | . . . . Recycling Units . | . . . . Scanalyzers . | . . . . Garrison Access . | . . . . Total Hacks 21 | . 20 . 1 Successful 5 | . 4 . 1 Failed 16 | . 16 . . Catastrophic 7 | . 7 . . Database Lockouts . | . . . . Manual 19 | . 19 . . Terminals 21 | . 20 . 1 Fabricators . | . . . . Repair Stations . | . . . . Recycling Units . | . . . . Scanalyzers . | . . . . Garrison Access . | . . . . Terminal Hacks 5 | . 4 . 1 Branch Access Points 1 | . . . 1 Terminal Index 1 | . 1 . . Locate Traps 1 | . 1 . . Hauler Manifests 1 | . 1 . . Registered Components 1 | . 1 . . Fabricator Hacks . | . . . . Repair Station Hacks . | . . . . Recycling Unit Hacks . | . . . . Scanalyzer . | . . . . Garrison Access Hacks . | . . . . Unauthorized Hacks . | . . . . Terminals . | . . . . Fabricators . | . . . . Repair Stations . | . . . . Recycling Units . | . . . . Scanalyzers . | . . . . Garrison Access . | . . . . Data Cores Recovered . | . . . . Used . | . . . . Hacking Detections 7 | . 6 . 1 Full Trace Events 5 | . 5 . . Feedback Events . | . . . . Feedback Blocked . | . . . . Robot Schematics Acquired . | . . . . Robots Built . | . . . . Authchips . | . . . . Time . | . . . . Total Robot Build Rating . | . . . . Part Schematics Acquired . | . . . . Parts Built . | . . . . Authchips . | . . . . Time . | . . . . Total Part Build Rating . | . . . . Parts Repaired . | . . . . Time . | . . . . Parts Recycled . | . . . . Recycled Matter . | . . . . Retrieved Matter . | . . . . Retrieved Components . | . . . . Parts Scanalyzed . | . . . . Part Schematics Acquired . | . . . . Parts Damaged . | . . . . Bothacking | -11 -10 -10 -9 ------------ Run | Yrd Mat Min Mat Used RIF Installer . | . . . . Robots Hacked . | . . . . Non-combat . | . . . . Combat . | . . . . Robot Hacks Applied . | . . . . Relay Couplers Released . | . . . . Fabnet Peak Effective % . | . . . . Robots Rewired . | . . . . Allies Hacked . | . . . . Hacks Repelled . | . . . . Allies | -11 -10 -10 -9 -------- Run | Yrd Mat Min Mat Total Allies . | . . . . Largest Group . | . . . . Highest-Rated Group . | . . . . Highest-Rated Ally . | . . . . Total Orders . | . . . . Ally Attacks . | . . . . Total Damage . | . . . . Kills . | . . . . Allies Corrupted . | . . . . Allies Melted . | . . . . Intel | -11 -10 -10 -9 ------- Run | Yrd Mat Min Mat Active Infowar (turns) 461 | . . . 461 Sensors 461 | . . . 461 Robot Analysis Total . | . . . . Derelict Logs Recovered . | . . . . Drone Launches . | . . . . Drone Recoveries . | . . . . Exploration | -11 -10 -10 -9 ------------- Run | Yrd Mat Min Mat Turns Passed 1710 | 89 920 229 472 Spaces Moved 724 | 64 405 87 168 Core 25 | 25 . . . Treads 699 | 39 405 87 168 Legs . | . . . . Wheels . | . . . . Hover . | . . . . Flight . | . . . . Fastest Speed 50 | 50 160 240 160 Average Speed 183 | 117 174 240 201 Slowest Speed 320 | 160 240 240 320 Overloaded Moves . | . . . . Propulsion Burnouts . | . . . . Robots Hopped . | . . . . Potential Cave-ins . | . . . . Cave-ins Triggered . | . . . . Exploration Rate (%) 27 | 3 68 27 13 Regions Visited 3 Branch Regions 1 Pre-discovered Areas . | . . . . Known Exits Taken . | . . . . Unknown Exits Taken 3 | 1 1 1 . Scrap Searched . | . . . . Spaces Dug . | . . . . Terrain Destroyed 1 | . 1 . . Melee . | . . . . Projectile 1 | . 1 . . AOE . | . . . . Terrain Rammed . | . . . . Walls Destroyed . | . . . . Machines Disabled . | . . . . Actions | -11 -10 -10 -9 --------- Run | Yrd Mat Min Mat Total 909 | 77 508 94 230 Wait 20 | . 16 . 4 Move 721 | 63 404 86 168 Hop . | . . . . Pick Up 25 | 8 11 . 6 Fast Attach 3 | 2 . . 1 Attach 10 | 4 1 . 5 Detach . | . . . . Swap 12 | . 6 . 6 Drop 6 | . 6 . . Fire 103 | . 64 8 31 Melee 9 | . . . 9 Ram . | . . . . Kick . | . . . . Crush . | . . . . Escape Stasis . | . . . . Rewire . | . . . . Trap . | . . . . Miscellaneous . | . . . . Route ------- -11/Scrapyard -10/Materials (discovered 2 exits: *Mat / [*Min]) -10/Mines -9/Materials (discovered 2 exits: Min x2) History --------- Turn | Location | Event 13 | -11/Scrapyard | Discovered new exit (range 15) 90 | -11/Scrapyard | Entered Materials 306 | -10/Materials | Build established: Mutant 333 | -10/Materials | Discovered new exit (range 5) 590 | -10/Materials | Discovered new exit (range 16) 1010 | -10/Materials | Entered Mines 1210 | -10/Mines | Discovered new exit (range 11) 1239 | -10/Mines | Entered Materials 1239 | -9/Materials | Evolved 2 slots: Propulsion x1, Utility x1 1498 | -9/Materials | Identified exit to Mines 1696 | -9/Materials | Core integrity fell below 50% 1703 | -9/Materials | Core integrity fell below 20% 1711 | -9/Materials | Destroyed by G-34 Mercenary with Small Laser Last Messages --------------- 01630_ K-01 Serf cleans the Electrolysis Chamber. 01638_ K-01 Serf cleans the Scanalyzer. 01667_ ALERT: Hostiles spotted, dispatching reinforcements to Terminal M012. 01674_ Electrolysis Chamber disabled. 01679_ Lgt. Treads destroyed. 01681_ Aluminum Leg severed. 01683_ Particle Gun destroyed. 01689_ Lgt. Assault Rifle destroyed. 01691_ Aluminum Leg destroyed. 01693_ Lgt. Treads destroyed. 01701_ Sensor Array destroyed. 01702_ Destroyed Imp. Aluminum Leg. 01702_ L-31 Rogue system corrupted by crushing effect. 01702_ L-31 Rogue knocked back. 01703_ L-31 Rogue system terminally corrupted. 01703_ Katana fried. 01707_ Ion Engine destroyed. 01708_ Destroyed Katana. 01708_ L-31 Rogue system corrupted by crushing effect. Map ----- +----------------------------------------------------+ | ?????????????????????????????????????????????????? | | ?????????????????????????????????????????????????? | | ?????????????????????????????????????????????????? | | ?????????????????????????????????????????????????? | | ?????????????????????????????????????????????????? | | ?????????????????????????????????????????????????? | | ?????????????????????????????????????????????????? | | #####?????????? ?????????????????????????????????? | | #????????## #????????????????????????????????? | | ########## ????????????????????????????????? | | # T # ???????????????????????????????? | | " # """ # #???????????????????????????????? | | # """ # #???????????????????????????????? | | #+### """ # #???????????????????????????????? | | # # #???????????????????????????????? | | !! # """ # #???????????????????????????????? | | + """ # #???????????????????????????????? | | # """ # #???????????????????????????????? | | = =# # #???????????????????????????????? | | % ########### ##########??>???????????????????? | | =% #?????????# # #??????????????????????? | | #?????????# # """ #??????????????????????? | | ########### # """ #???????????"""????????? | | % # "" #?????### ????????? | | [ + g #??? ???????? | | #"S %!@## ???????? | | ###+######### #""" ul g ???????? | | # ??????# # "" ## ???????? | | # #????# # #??#+##+#####??????????? | | # #????# ##########??????????????????????? | | # !!! #????# #???????????????????????????????? | | [ # !! #????# #???????????????????????????????? | | # !! #????#+#???????????????????????????????? | | ###########??????????????????????????????????????? | | ?????????????????????????????????????????????????? | | ?????????????????????????????????????????????????? | | ?????????????????????????????????????????????????? | | ?????????????????????????????????????????????????? | | ?????????????????????????????????????????????????? | | ?????????????????????????????????????????????????? | | ?????????????????????????????????????????????????? | | ?????????????????????????????????????????????????? | | ?????????????????????????????????????????????????? | | ?????????????????????????????????????????????????? | | ?????????????????????????????????????????????????? | | ?????????????????????????????????????????????????? | | ?????????????????????????????????????????????????? | | ?????????????????????????????????????????????????? | | ?????????????????????????????????????????????????? | | ?????????????????????????????????????????????????? | +----------------------------------------------------+ Best States ------------- Heat Dissipation 28 Energy Generation 10 Energy Capacity 250 Matter Stores 300 Matter Capacity 300 Sight Range 16 Robot Scan Range 14 Terrain Scan Density 10 Power Shielding 33 Evasion (%) 50 Recoil Reduction 3 Item Schematics ----------------- None Robot Schematics ------------------ None Fabricated ------------ Nothing Repaired ---------- Nothing Alien Tech Used ----------------- None Achievements -------------- None Challenges ------------ None Game ------ Seed TargetingVoltaicScreen Manual? 0 Play Time 00:13:56 Cumulative 76.9 hours Start 2025.05.24 @ 01:20:27 End 2025.05.24 @ 01:33:35 Sessions 1 Manual Loads 0 Difficulty Rogue Special Mode None Game No. 42 Rogue 36 Adventurer 6 Explorer 0 Win Type - Total 3 Types 3/0/0/0/0/0/0/0/0/0 Lore% 23 Gallery% 38 Achievement% 37 Wizard Run 0 Options --------- Layout 0 ASCII 1 Keyboard 1 Movement Vi Keybinds 0 Fullscreen 1 Font 24/Smallcaps Map View 76x50 Zoom Use 0% Tactical HUD 1 Map Filters NONE Filters NONE Steam 1 RUN: b5768428-9048-4600-ab91-19c33bbea155